bitfinex/quotes_SOLUSD_20250809
["timestamp","ask_amount","ask_price","bid_price","bid_amount"]
[1754767966720,44.79376489,182.01,182.0,0.06]
[1754767969514,44.10376489,182.01,182.0,0.06]
[1754767970616,38.43,182.01,182.0,0.06]
[1754767970923,38.43,182.01,182.0,0.75]
[1754767972210,38.43,182.01,182.0,0.06]
[1754767973701,39.12,182.01,182.0,0.06]
[1754767973905,44.79376489,182.01,182.0,0.06]
[1754767977743,38.43,182.01,182.0,0.06]
[1754767978739,38.43,182.01,182.0,0.75]
[1754767979532,38.43,182.01,182.0,0.06]
[1754767980037,38.43,182.01,182.0,0.74]
[1754767980225,38.43,182.01,182.0,0.06]
[1754767980429,39.12,182.01,182.0,0.06]
[1754767980741,38.43,182.01,182.0,0.06]
[1754767981239,44.79376489,182.01,182.0,0.06]
[1754767981712,65.39418407,182.01,182.0,0.06]
[1754767982113,59.89998046,182.01,182.0,0.06]
[1754767982625,65.39418407,182.01,182.0,0.06]
[1754767983227,91.39418407,182.01,182.0,0.06]
[1754767984045,93.45151075,182.01,182.0,0.06]
[1754767985331,92.40511033,182.01,182.0,0.06]
[1754767985642,98.07887522,182.01,182.0,0.06]
[1754767989141,92.58467161,182.01,182.0,0.06]
[1754767989329,85.89998046,182.01,182.0,0.06]
[1754767989646,98.07665283,182.01,182.0,0.06]
[1754767991552,91.39418407,182.01,182.0,0.06]
[1754767991726,98.07619663,182.01,182.0,0.06]
[1754767992754,67.44883216,182.01,182.0,0.06]
[1754767992944,41.10621557,181.99,181.98,0.06]
[1754767993144,97.53209325,181.99,181.98,0.06]
[1754767993342,98.22209325,181.99,181.98,0.06]
[1754767993746,92.54832836,181.99,181.98,0.06]
[1754767994646,98.04313576,181.99,181.98,0.06]
[1754767994869,41.10621557,181.97,181.96,0.06]
[1754767995150,162.70621557,181.96,181.94,0.06]
[1754767995453,59.17998046,181.95,181.94,0.06]
[1754767995642,59.86998046,181.95,181.94,0.06]
[1754767996629,72.03626971,181.95,181.94,0.06]
[1754767996860,15.10621557,181.93,181.92,0.06]
[1754767997151,59.17998046,181.93,181.92,0.06]
[1754767997356,59.86998046,181.93,181.92,0.06]
[1754767997528,59.17998046,181.93,181.92,0.06]
[1754767997724,59.17998046,181.93,181.92,0.74]
[1754767998149,59.17998046,181.93,181.92,0.06]
[1754767998725,85.17998046,181.93,181.92,0.06]
[1754767998928,85.17998046,181.93,181.92,0.74]
[1754767999456,85.17998046,181.93,181.92,0.06]
[1754767999644,85.17998046,181.93,181.92,0.74]
[1754767999953,85.17998046,181.93,181.92,0.06]
[1754767999954,91.36660003,181.93,181.92,0.06]
[1754768000560,65.36660003,181.93,181.92,0.06]
[1754768001956,15.10621557,181.91,181.9,0.06]
[1754768002160,59.17998046,181.91,181.9,0.06]
[1754768002339,65.54374535,181.91,181.9,0.06]
[1754768002532,59.86998046,181.91,181.9,0.06]
[1754768003755,59.17998046,181.91,181.9,0.06]
[1754768004060,65.36720436,181.91,181.9,0.06]
[1754768006655,64.67720436,181.91,181.9,0.06]
[1754768007156,59.17998046,181.91,181.9,0.06]
[1754768007537,64.67720436,181.91,181.9,0.06]
[1754768008846,65.36720436,181.91,181.9,0.06]
[1754768009849,64.67720436,181.91,181.9,0.06]
[1754768014558,59.17998046,181.91,181.9,0.78]
[1754768016148,38.4,181.91,181.9,0.78]
[1754768017249,59.17998046,181.91,181.9,0.06]
[1754768017862,5.67376489,181.91,181.9,0.06]
[1754768018071,38.42,181.91,181.9,0.78]
[1754768018372,38.42,181.91,181.9,6.27746361]
[1754768019977,38.42,181.91,181.9,11.9512285]
[1754768020267,38.42,181.92,181.9,11.9512285]
[1754768020569,38.42,181.92,181.91,6.39376489]
[1754768021864,0.03,181.94,181.92,5.49692172]
[1754768022061,38.42,181.93,181.92,6.21692172]
[1754768022262,38.42,181.93,181.92,5.49692172]
[1754768022775,38.42,181.93,181.92,6.21692172]
[1754768023262,0.03,181.94,181.92,11.89068661]
[1754768023467,38.43,181.94,181.93,6.39376489]
[1754768024365,38.43,181.94,181.93,11.89038446]
[1754768024670,38.43,181.94,181.93,6.21661957]
[1754768024970,44.10376489,181.94,181.9,0.78]
[1754768025174,44.10376489,181.94,181.91,0.72]
[1754768025947,44.10376489,181.94,181.91,6.21716436]
[1754768027370,38.43,181.94,181.91,5.49716436]
[1754768027581,38.43,181.94,181.92,0.72]
[1754768028154,38.43,181.94,181.93,0.72]
[1754768028361,38.43,181.94,181.93,6.39376489]
[1754768029662,38.43,181.94,181.93,0.72]
[1754768029976,38.43,181.94,181.92,11.17060591]
[1754768030179,38.43,181.94,181.91,5.4971935]
[1754768030385,39.11,181.94,181.91,5.4971935]
[1754768033576,0.68,181.93,181.9,0.06]
[1754768033875,39.08,181.92,181.9,0.06]
[1754768034090,5.67376489,181.91,181.9,0.06]
[1754768034312,6.35376489,181.91,181.9,0.06]
[1754768034763,0.68,181.91,181.9,0.06]
[1754768034964,20.77998046,181.91,181.9,0.06]
[1754768035173,21.45998046,181.91,181.9,0.06]
[1754768035375,26.95720436,181.91,181.9,0.06]
[1754768036196,21.45998046,181.91,181.9,0.06]
[1754768039507,59.85998046,181.91,181.9,0.06]
[1754768040617,38.4,181.91,181.9,0.06]
[1754768041803,44.78376489,181.91,181.9,0.06]
[1754768042718,59.88998046,181.91,181.9,0.06]
[1754768043592,44.07376489,181.91,181.9,0.06]
[1754768043990,38.4,181.91,181.9,0.72]
[1754768044536,65.38720436,181.91,181.9,0.06]
[1754768052921,72.04743002,181.91,181.9,0.06]
[1754768053116,67.43996758,181.91,181.9,0.06]
[1754768053337,65.38720436,181.91,181.9,0.06]
[1754768054414,85.17998046,181.91,181.9,0.06]
[1754768059730,85.88998046,181.91,181.9,0.06]
[1754768060032,80.21621557,181.91,181.9,0.06]
[1754768060200,85.17998046,181.91,181.9,0.06]
[1754768060931,85.88998046,181.91,181.9,0.06]
[1754768062808,85.17998046,181.91,181.9,0.06]
[1754768065924,38.4,181.91,181.9,0.72]
[1754768066311,44.07376489,181.91,181.9,0.06]
[1754768066716,38.4,181.91,181.9,0.06]
[1754768066909,44.07376489,181.91,181.9,0.06]
[1754768068518,67.58869536,181.91,181.9,0.06]
[1754768070942,75.31602166,181.91,181.9,0.06]
[1754768071310,15.10621557,181.9,181.89,0.06]
[1754768071524,29.22730676,181.9,181.89,0.06]
[1754768072524,23.37730309,181.9,181.89,0.06]
[1754768072829,34.72483287,181.9,181.89,0.06]
[1754768073207,34.72483287,181.9,181.88,0.06]
[1754768073208,26.45374535,181.89,181.88,0.06]
[1754768073409,67.62730676,181.89,181.88,0.06]
[1754768074039,69.82976776,181.89,181.88,0.06]
[1754768075048,75.32759611,181.89,181.88,0.06]
[1754768076226,35.15494854,181.89,181.88,0.06]
[1754768076425,74.27494854,181.89,181.88,0.06]
[1754768076739,75.32759611,181.89,181.88,0.06]
[1754768078118,74.60759611,181.89,181.88,0.06]
[1754768078920,68.93383122,181.89,181.88,0.06]
[1754768079818,73.55737489,181.89,181.88,0.06]
[1754768080019,68.93383122,181.89,181.88,0.06]
[1754768082244,73.55655868,181.89,181.88,0.75]
[1754768082558,68.05873033,181.89,181.88,0.75]
[1754768082839,0.03,181.92,181.88,0.75]
[1754768083034,38.4,181.91,181.88,6.42376489]
[1754768083238,38.4,181.91,181.88,5.73376489]
[1754768083417,38.4,181.91,181.9,5.67376489]
[1754768083614,38.4,181.91,181.9,0.69]
[1754768084442,64.67724337,181.91,181.88,0.75]
[1754768084639,5.67376489,181.89,181.88,0.75]
[1754768084850,44.07376489,181.89,181.88,0.75]
[1754768085139,38.4,181.89,181.88,0.75]
[1754768090242,26.03,181.92,181.88,11.92189552]
[1754768090243,0.03,181.92,181.88,11.92189552]
[1754768090427,0.03,181.92,181.91,5.67376489]
[1754768090628,38.43,181.92,181.91,5.67376489]
[1754768090828,38.43,181.92,181.91,6.36376489]
[1754768091030,38.43,181.92,181.91,5.86376489]
[1754768091228,0.03,181.92,181.91,5.86376489]
[1754768092129,0.03,181.92,181.91,11.36098879]
[1754768092653,0.03,181.92,181.91,6.1872239]
[1754768092949,0.03,181.92,181.91,11.86098879]
[1754768095732,6.42376489,181.92,181.88,0.06]
[1754768095949,5.67376489,181.89,181.88,0.06]
[1754768096128,44.07376489,181.89,181.88,0.06]
[1754768096553,38.4,181.89,181.88,0.06]
[1754768097854,44.07376489,181.89,181.88,0.06]
[1754768098739,38.4,181.89,181.88,0.06]
[1754768098940,44.07376489,181.89,181.88,0.06]
[1754768100356,38.4,181.89,181.88,0.06]
[1754768100855,38.4,181.89,181.88,0.77]
[1754768102356,38.4,181.89,181.88,0.06]
[1754768102558,44.77376489,181.89,181.88,0.06]
[1754768103454,46.97549889,181.89,181.88,0.06]
[1754768104834,46.27549889,181.89,181.88,0.06]
[1754768106759,62.08171446,181.89,181.88,0.06]
[1754768107063,67.57954281,181.89,181.88,0.06]
[1754768107364,73.2533077,181.89,181.88,0.06]
[1754768107539,99.2533077,181.89,181.88,0.06]
[1754768107953,93.57954281,181.89,181.88,0.06]
[1754768108351,99.2533077,181.89,181.88,0.06]
[1754768108662,73.2533077,181.89,181.88,0.06]
[1754768108861,79.92803103,181.89,181.88,0.06]
[1754768109341,75.30530357,181.89,181.88,0.06]
[1754768110147,67.57954281,181.89,181.88,0.06]
[1754768111962,79.92796257,181.89,181.88,0.06]
[1754768112465,75.30523511,181.89,181.88,0.06]
[1754768112668,73.2533077,181.89,181.88,0.06]
[1754768112862,75.30568664,181.89,181.88,0.06]
[1754768113548,73.2533077,181.89,181.88,0.06]
[1754768114150,75.30557909,181.89,181.88,0.06]
[1754768114852,79.92830655,181.89,181.88,0.06]
[1754768115557,67.57954281,181.89,181.88,0.06]
[1754768115870,79.9279773,181.89,181.88,0.06]
[1754768116576,73.2533077,181.89,181.88,0.06]
[1754768116872,75.30519585,181.89,181.88,0.06]
[1754768117171,73.2533077,181.89,181.88,0.06]
[1754768117669,79.9279416,181.89,181.88,0.06]
[1754768118646,73.2533077,181.89,181.88,0.06]
[1754768118852,75.30533777,181.89,181.88,0.06]
[1754768119471,79.92806523,181.89,181.88,0.06]
[1754768119776,75.30533777,181.89,181.88,0.06]
[1754768120276,36.90533777,181.89,181.88,0.06]
[1754768120468,79.92806523,181.89,181.88,0.06]
[1754768122975,75.49199696,181.89,181.88,0.06]
[1754768123173,80.10989828,181.89,181.88,0.06]
[1754768124076,75.49199696,181.89,181.88,0.06]
[1754768124972,80.10989828,181.89,181.88,0.06]
[1754768126351,17.49460876,181.89,181.88,0.77]
[1754768126775,147.6,181.9,181.88,0.77]
[1754768127076,53.50621557,181.89,181.88,0.77]
[1754768127261,59.17998046,181.89,181.88,0.77]
[1754768127462,38.4,181.89,181.88,0.06]
[1754768127967,38.4,181.89,181.88,6.44376489]
[1754768128161,38.4,181.89,181.88,0.77]
[1754768130576,59.17998046,181.89,181.88,0.06]
[1754768131772,64.67780881,181.89,181.88,0.06]
[1754768132508,91.33780881,181.89,181.88,0.06]
[1754768132788,77.68172518,181.89,181.88,0.06]
[1754768133286,77.68174963,181.89,181.88,0.06]
[1754768133768,77.86835952,181.89,181.88,0.06]
[1754768133964,73.2509804,181.89,181.88,0.06]
[1754768134186,71.53627571,181.89,181.88,0.06]
[1754768134485,66.73045709,181.89,181.88,0.06]
[1754768134683,87.23262874,181.89,181.88,0.72]
[1754768134890,85.17998046,181.89,181.88,0.06]
[1754768136684,85.17998046,181.89,181.88,0.72]
[1754768138085,90.67780881,181.89,181.88,0.72]
[1754768138287,90.67780881,181.89,181.88,0.06]
[1754768139382,77.68570851,181.89,181.88,0.06]
[1754768139585,75.26813589,181.89,181.88,0.06]
[1754768140371,75.45477659,181.89,181.88,0.06]
[1754768141599,69.594371,181.89,181.88,0.06]
[1754768141788,75.26990148,181.89,181.88,0.06]
[1754768141984,81.3875875,181.89,181.88,0.06]
[1754768142179,81.5742282,181.89,181.88,0.06]
[1754768142379,75.45654218,181.89,181.88,0.06]
[1754768142898,15.10621557,181.88,181.87,0.06]
[1754768143100,29.66549251,181.88,181.86,0.06]
[1754768143302,67.39452218,181.87,181.86,0.06]
[1754768143694,73.56392545,181.87,181.86,0.06]
[1754768143997,73.75056615,181.87,181.86,0.06]
[1754768144200,67.58116288,181.87,181.86,0.06]
[1754768144378,73.56392545,181.87,181.86,0.06]
[1754768145195,67.39452218,181.87,181.86,0.06]
[1754768146605,73.56392545,181.87,181.86,0.06]
[1754768146792,73.75061753,181.87,181.86,0.06]
[1754768146994,67.58121426,181.87,181.86,0.06]
[1754768147786,73.75061753,181.87,181.86,0.06]
[1754768147988,75.95332153,181.87,181.86,0.06]
[1754768149215,69.78391826,181.87,181.86,0.06]
[1754768150022,178.32391826,181.87,181.86,0.06]
[1754768150183,221.35068736,181.87,181.86,0.72]
[1754768150585,239.46285834,181.87,181.86,0.72]
[1754768150788,201.10621557,181.87,181.86,0.72]
[1754768151200,212.2784134,181.87,181.86,0.06]
[1754768151399,214.33522329,181.87,181.86,0.72]
[1754768151609,208.83679035,181.87,181.86,0.72]
[1754768151814,206.77998046,181.87,181.86,0.72]
[1754768152123,214.33522329,181.87,181.86,0.72]
[1754768152620,212.2784134,181.87,181.86,0.72]
[1754768153009,214.335256,181.87,181.86,0.72]
[1754768153203,214.335256,181.87,181.86,0.06]
[1754768154114,214.335256,181.87,181.86,0.72]
[1754768154422,206.77998046,181.87,181.86,0.72]
[1754768156319,191.67376489,181.87,181.86,0.72]
[1754768156504,38.4,181.87,181.86,0.72]
[1754768156905,38.4,181.87,181.86,6.39376489]
[1754768157907,38.4,181.87,181.86,6.21873529]
[1754768158117,38.4,181.87,181.86,0.72]
[1754768158408,15.13621557,181.91,181.86,11.89248742]
[1754768158619,38.4,181.9,181.87,0.66]
[1754768159025,38.4,181.9,181.87,6.33376489]
[1754768159213,38.4,181.9,181.87,5.67376489]
[1754768159527,38.4,181.9,181.88,0.67]
[1754768160224,38.4,181.9,181.87,5.67376489]
[1754768160417,38.4,181.9,181.89,0.67]
[1754768161332,38.4,181.9,181.87,0.67]
[1754768161716,38.4,181.9,181.88,0.67]
[1754768161917,5.67376489,181.89,181.86,0.73]
[1754768162109,38.4,181.88,181.87,0.67]
[1754768162418,38.4,181.88,181.86,5.73376489]
[1754768162601,38.4,181.88,181.86,0.06]
[1754768163116,38.4,181.88,181.87,0.67]
[1754768163630,38.4,181.88,181.86,0.06]
[1754768163842,38.4,181.88,181.86,0.73]
[1754768165326,49.57192276,181.88,181.86,0.06]
[1754768165533,5.67376489,181.87,181.86,0.06]
[1754768165738,21.46998046,181.87,181.86,0.06]
[1754768167434,26.9684134,181.87,181.86,0.06]
[1754768168745,21.29464851,181.87,181.86,0.06]
[1754768169043,26.9684134,181.87,181.86,0.06]
[1754768172120,26.2784134,181.87,181.86,0.06]
[1754768172513,26.9684134,181.87,181.86,0.06]
[1754768173035,33.64718453,181.87,181.86,0.06]
[1754768173246,15.10621557,181.86,181.83,0.06]
[1754768173455,15.10621557,181.83,181.82,0.06]
[1754768173753,61.25543252,181.83,181.82,0.06]
[1754768173914,61.94543252,181.83,181.82,0.06]
[1754768174339,66.30539125,181.83,181.82,0.06]
[1754768174819,71.80503377,181.83,181.82,0.06]
[1754768175222,77.97443704,181.83,181.82,0.06]
[1754768175543,77.66548046,181.83,181.82,0.06]
[1754768175740,77.47879866,181.83,181.82,0.06]
[1754768175946,77.66548046,181.83,181.82,0.06]
[1754768176250,74.19490457,181.83,181.82,0.06]
[1754768177025,52.45374535,181.81,181.8,0.06]
[1754768177362,53.45468942,181.81,181.8,0.06]
[1754768177532,92.62468942,181.81,181.8,0.06]
[1754768177720,88.00333339,181.81,181.8,0.06]
[1754768179022,91.45022797,181.81,181.8,0.06]
[1754768179739,52.97022797,181.81,181.8,0.06]
[1754768179944,91.45022797,181.81,181.8,0.06]
[1754768180538,93.50191918,181.81,181.8,0.06]
[1754768180956,91.45022797,181.81,181.8,0.06]
[1754768181449,90.76022797,181.81,181.8,0.06]
[1754768181975,40.66319,181.81,181.8,0.73]
[1754768182137,38.46,181.81,181.8,0.73]
[1754768186667,38.46,181.81,181.8,0.06]
[1754768186853,65.43022797,181.81,181.8,0.06]
[1754768187257,67.63341697,181.81,181.8,0.06]
[1754768187943,66.94341697,181.81,181.8,0.06]
[1754768188361,38.46,181.81,181.8,0.73]
[1754768189962,38.46,181.81,181.8,6.40376489]
[1754768190349,38.46,181.81,181.8,0.73]
[1754768192252,38.46,181.81,181.8,0.06]
[1754768193171,38.46,181.81,181.8,0.75]
[1754768197024,38.46,181.81,181.8,0.06]
[1754768197357,44.13376489,181.81,181.8,0.06]
[1754768198262,38.46,181.81,181.8,0.06]
[1754768201970,11.175194,181.84,181.8,0.75]
[1754768202287,0.66,181.87,181.83,5.67376489]
[1754768202474,26.66,181.87,181.83,0.69]
[1754768202793,38.48,181.85,181.83,0.69]
[1754768203999,38.48,181.85,181.84,0.69]
[1754768204505,0.03,181.88,181.84,6.36376489]
[1754768204697,38.48,181.85,181.84,0.69]
[1754768204871,38.48,181.85,181.84,6.36376489]
[1754768205077,0.03,181.88,181.84,6.36376489]
[1754768205078,38.51,181.86,181.84,6.36376489]
[1754768205277,38.51,181.86,181.85,0.69]
[1754768206402,38.51,181.86,181.83,5.67376489]
[1754768206605,38.51,181.86,181.84,6.36376489]
[1754768207302,38.51,181.86,181.83,5.67376489]
[1754768207505,38.51,181.86,181.81,5.50024751]
[1754768207671,38.51,181.86,181.82,11.17362427]
[1754768207672,39.17,181.86,181.82,11.17362427]
[1754768207875,39.17,181.86,181.83,0.69]
[1754768207876,38.51,181.86,181.83,0.69]
[1754768208504,38.51,181.86,181.83,6.36376489]
[1754768209096,38.51,181.86,181.84,0.69]
[1754768209291,0.03,181.86,181.85,6.36376489]
[1754768210504,0.03,181.86,181.85,11.86280255]
[1754768221899,0.03,181.88,181.85,32.64278301]
[1754768222106,0.03,181.88,181.87,11.34752978]
[1754768222403,0.03,181.88,181.87,5.67376489]
[1754768222605,0.03,181.88,181.87,6.37376489]
[1754768223134,0.03,181.88,181.87,11.87219783]
[1754768223434,0.03,181.88,181.87,11.17219783]
[1754768223799,0.71,181.88,181.85,5.49882629]
[1754768224001,0.68,181.87,181.86,5.67376489]
[1754768224224,0.68,181.87,181.85,5.49882629]
[1754768224419,0.68,181.87,181.86,5.67376489]
[1754768224930,0.68,181.87,181.86,11.17250018]
[1754768227229,6.35376489,181.87,181.8,0.06]
[1754768227534,5.67376489,181.83,181.8,0.06]
[1754768227901,0.68,181.82,181.8,0.06]
[1754768228315,5.67376489,181.81,181.8,0.06]
[1754768228706,6.35376489,181.81,181.8,0.06]
[1754768228924,0.68,181.81,181.8,0.06]
[1754768229515,6.35376489,181.81,181.8,0.06]
[1754768229729,0.68,181.81,181.8,0.06]
[1754768229917,6.35376489,181.81,181.8,0.06]
[1754768232532,11.8540124,181.81,181.8,0.06]
[1754768233258,26.96022797,181.81,181.8,0.06]
[1754768233943,29.16329597,181.81,181.8,0.06]
[1754768236626,26.0,181.81,181.8,0.06]
[1754768236823,26.0,181.83,181.8,5.73376489]
[1754768237022,64.68,181.82,181.8,5.73376489]
[1754768237253,65.36,181.82,181.8,0.06]
[1754768237742,64.68,181.82,181.8,0.06]
[1754768237930,64.68,181.82,181.8,0.76]
[1754768238133,38.68,181.82,181.81,0.7]
[1754768238336,38.68,181.84,181.81,6.37376489]
[1754768238536,38.68,181.84,181.83,5.67376489]
[1754768238758,38.68,181.84,181.83,0.7]
[1754768238933,38.71,181.87,181.83,6.37376489]
[1754768239132,38.71,181.87,181.84,6.37376489]
[1754768239628,38.71,181.87,181.84,5.67376489]
[1754768239833,38.71,181.87,181.8,5.73376489]
[1754768239834,5.67376489,181.85,181.8,0.06]
[1754768240027,6.35376489,181.86,181.81,5.67376489]
[1754768240232,38.71,181.87,181.8,0.06]
[1754768240233,0.68,181.85,181.8,0.06]
[1754768240452,0.68,181.84,181.8,5.73376489]
[1754768240854,0.68,181.84,181.8,6.43376489]
[1754768241042,5.67376489,181.84,181.8,0.06]
[1754768241244,45.07376489,181.83,181.8,0.06]
[1754768241672,0.68,181.82,181.8,0.06]
[1754768241973,38.72,181.83,181.8,0.76]
[1754768242149,38.72,181.83,181.8,0.06]
[1754768242469,38.72,181.83,181.8,0.76]
[1754768242677,38.72,181.83,181.8,6.43376489]
[1754768243161,38.72,181.83,181.81,5.67376489]
[1754768243362,38.72,181.83,181.8,5.73376489]
[1754768243572,39.4,181.83,181.8,0.06]
[1754768244268,38.72,181.83,181.81,0.7]
[1754768244451,38.72,181.83,181.8,0.06]
[1754768244750,39.4,181.83,181.8,0.06]
[1754768245152,0.68,181.82,181.8,0.06]
[1754768245368,6.35376489,181.82,181.8,0.06]
[1754768245667,0.68,181.81,181.8,0.06]
[1754768246351,45.07376489,181.83,181.8,0.06]
[1754768246674,0.68,181.82,181.8,0.06]
[1754768246856,44.39376489,181.83,181.8,0.06]
[1754768247056,45.07376489,181.83,181.8,0.06]
[1754768247256,39.4,181.83,181.8,0.06]
[1754768248346,45.07376489,181.83,181.8,0.06]
[1754768248661,0.68,181.82,181.8,0.06]
[1754768248849,5.67376489,181.81,181.8,0.06]
[1754768249580,6.39376489,181.81,181.8,0.06]
[1754768250268,0.72,181.81,181.8,0.06]
[1754768250449,6.39376489,181.81,181.8,0.06]
[1754768251768,0.72,181.81,181.8,0.06]
[1754768251965,6.39376489,181.81,181.8,0.06]
[1754768253473,11.8940124,181.81,181.8,0.06]
[1754768254250,0.72,181.81,181.8,0.06]
[1754768254457,32.39376489,181.81,181.8,0.06]
[1754768255055,26.0,181.81,181.8,0.06]
[1754768255375,31.67376489,181.81,181.8,0.06]
[1754768255580,26.0,181.81,181.8,0.06]
[1754768255874,32.39376489,181.81,181.8,0.06]
[1754768256080,71.13376489,181.81,181.8,0.06]
[1754768256263,70.41376489,181.81,181.8,0.06]
[1754768256460,64.74,181.81,181.8,0.06]
[1754768256667,64.74,181.81,181.8,0.74]
[1754768257062,64.74,181.81,181.8,0.06]
[1754768257266,64.74,181.81,181.8,0.74]
[1754768257676,38.74,181.81,181.8,0.74]
[1754768258267,6.39376489,181.84,181.8,0.74]
[1754768258574,38.74,181.82,181.8,0.74]
[1754768258771,38.74,181.82,181.8,0.06]
[1754768260077,38.74,181.82,181.81,0.68]
[1754768260273,38.74,181.82,181.81,6.18024751]
[1754768260672,38.72,181.83,181.81,6.18024751]
[1754768260977,38.72,181.83,181.81,11.1740124]
[1754768261178,38.72,181.83,181.81,5.50024751]
[1754768261781,39.44,181.83,181.8,0.06]
[1754768261978,0.72,181.82,181.8,0.06]
[1754768262183,38.72,181.81,181.8,0.06]
[1754768262481,39.44,181.81,181.8,0.06]
[1754768264156,38.72,181.81,181.8,0.06]
[1754768264356,38.72,181.81,181.8,6.41376489]
[1754768265372,38.72,181.81,181.8,11.91431494]
[1754768266580,38.72,181.81,181.8,0.06]
[1754768266985,39.42,181.83,181.8,0.06]
[1754768267169,0.72,181.82,181.8,0.06]
[1754768268476,38.7,181.83,181.8,0.06]
[1754768268787,38.7,181.83,181.81,6.35376489]
[1754768269861,38.7,181.83,181.81,11.85387839]
[1754768270294,38.7,181.83,181.82,6.35376489]
[1754768270478,38.7,181.83,181.82,0.68]
[1754768270672,38.7,181.83,181.81,5.5001135]
[1754768270984,0.72,181.82,181.8,11.23426319]
[1754768271187,0.72,181.82,181.8,5.5604983]
[1754768271368,38.7,181.83,181.8,11.23426319]
[1754768271793,39.42,181.83,181.8,11.23426319]
[1754768272979,38.7,181.83,181.8,11.91426319]
[1754768273695,38.7,181.83,181.8,11.23426319]
[1754768273987,39.42,181.83,181.8,11.23426319]
[1754768274165,39.42,181.83,181.8,5.5604983]
[1754768276091,38.7,181.83,181.8,5.5604983]
[1754768276306,38.7,181.83,181.8,6.2404983]
[1754768276609,38.7,181.83,181.8,11.91426319]
[1754768278594,39.42,181.83,181.8,11.91426319]
[1754768278797,39.42,181.83,181.8,5.5604983]
[1754768279101,39.42,181.83,181.8,11.23426319]
[1754768279473,39.42,181.83,181.8,11.94426319]
[1754768280193,39.42,181.83,181.8,11.23426319]
[1754768280399,39.42,181.83,181.8,5.5604983]
[1754768281298,39.42,181.83,181.8,11.94426319]
[1754768282310,39.42,181.83,181.8,11.23426319]
[1754768282677,39.42,181.83,181.8,0.06]
[1754768282678,0.7,181.82,181.8,0.06]
[1754768283087,0.7,181.81,181.8,0.06]
[1754768283495,38.7,181.83,181.8,0.06]
[1754768283771,0.7,181.82,181.8,0.06]
[1754768284198,0.7,181.81,181.8,0.06]
[1754768285392,39.4,181.83,181.8,0.06]
[1754768286404,38.7,181.83,181.8,0.06]
[1754768286705,0.7,181.82,181.8,0.06]
[1754768286906,0.03,181.87,181.81,6.38376489]
[1754768287122,38.65,181.87,181.85,5.67376489]
[1754768287280,38.65,181.87,181.8,5.73376489]
[1754768287491,38.65,181.87,181.85,5.67376489]
[1754768287817,39.35,181.87,181.83,0.71]
[1754768287986,0.7,181.86,181.84,5.67376489]
[1754768288598,38.65,181.87,181.82,6.20969636]
[1754768288798,39.35,181.87,181.84,5.67376489]
[1754768289191,38.65,181.87,181.84,5.67376489]
[1754768289388,0.7,181.86,181.85,4.08845595]
[1754768289897,38.65,181.87,181.85,9.76222084]
[1754768290121,38.65,181.87,181.86,4.08845595]
[1754768290311,38.65,181.87,181.86,9.76222084]